fUST/lending_fUST_20250901
["ID","MTS","AMOUNT","RATE_DAILY","PERIOD"]
[382672859,1756705839969,-480.0,0.00014228,2]
[382672860,1756705839979,-480.0,0.00014228,2]
[382672861,1756705839988,-480.0,0.00014228,2]
[382672862,1756705839998,-480.0,0.00014228,2]
[382672863,1756705840007,-888.21,0.00014228,2]
[382672864,1756705840017,-482.07932403,0.00014228,2]
[382672865,1756705840026,-480.0,0.00014228,2]
[382672866,1756705840035,-443.83319411,0.00014228,2]
[382672867,1756705840044,-482.32406535,0.00014228,2]
[382672868,1756705840054,-2136.21,0.00014228,2]
[382672869,1756705840065,-480.0,0.00014228,2]
[382672871,1756705840074,-1101.63,0.00014228,2]
[382672873,1756705840084,-1066.5,0.00014228,2]
[382672875,1756705840093,-1066.5,0.00014228,2]
[382672877,1756705840102,-1066.5,0.00014228,2]
[382672879,1756705840111,-1066.5,0.00014228,2]
[382672881,1756705840122,-1066.5,0.00014228,2]
[382672883,1756705840133,-375.32385594,0.00014228,2]
[382672885,1756705840145,-710.3,0.00014228,2]
[382672887,1756705840155,-480.0,0.00014228,2]
[382672889,1756705840166,-480.0,0.00014228,2]
[382672891,1756705840176,-516.35,0.00014228,2]
[382672893,1756705840186,-1380.56,0.00014228,2]
[382672895,1756705840196,-619.66,0.00014228,2]
[382672897,1756705840207,-480.0,0.00014228,2]
[382672899,1756705840217,-481.62109571,0.00014228,2]
[382672901,1756705840227,-621.5,0.00014228,2]
[382672903,1756705840237,-550.2,0.00014228,2]
[382672905,1756705840246,-151.0,0.00014228,2]
[382672907,1756705840255,-151.0,0.00014228,2]
[382672909,1756705840265,-480.0,0.00014229,2]
[382672910,1756705840274,-480.0,0.00014229,2]
[382672911,1756705840283,-480.0,0.00014229,2]
[382672912,1756705840292,-480.0,0.00014229,2]
[382672913,1756705840301,-480.0,0.00014229,2]
[382672914,1756705840310,-480.0,0.00014229,2]
[382672915,1756705840319,-480.0,0.00014229,2]
[382672916,1756705840328,-480.0,0.00014229,2]
[382672917,1756705840337,-480.0,0.00014229,2]
[382672918,1756705840346,-480.0,0.00014229,2]
[382672919,1756705840355,-691.89,0.00014229,2]
[382672920,1756705840364,-483.34367412,0.00014229,2]
[382672921,1756705840373,-480.0,0.00014229,2]
[382672922,1756705840382,-480.0,0.00014229,2]
[382672923,1756705840391,-480.0,0.00014229,2]
[382672924,1756705840400,-480.0,0.00014229,2]
[382672925,1756705840409,-480.0,0.00014229,2]
[382672926,1756705840418,-480.0,0.00014229,2]
[382672927,1756705840427,-480.0,0.00014229,2]
[382672928,1756705840436,-480.0,0.00014229,2]
[382672929,1756705840445,-480.0,0.00014229,2]
[382672930,1756705840453,-480.0,0.00014229,2]
[382672931,1756705840462,-480.0,0.00014229,2]
[382672932,1756705840471,-480.0,0.00014229,2]
[382672933,1756705840480,-480.0,0.00014229,2]
[382672934,1756705840489,-480.0,0.00014229,2]
[382672935,1756705840498,-480.0,0.00014229,2]
[382672936,1756705840507,-480.0,0.00014229,2]
[382672937,1756705840516,-480.0,0.00014229,2]
[382672938,1756705840525,-480.0,0.00014229,2]
[382672939,1756705840534,-480.0,0.00014229,2]
[382672940,1756705840543,-856.14,0.00014229,2]
[382672941,1756705840552,-459.68315562,0.00014229,2]
[382672942,1756705840563,-311.63276069,0.00014229,2]
[382672943,1756705840572,-482.3668287,0.00014229,2]
[382672944,1756705840581,-814.59,0.00014229,2]
[382672945,1756705840590,-480.0,0.00014229,2]
[382672946,1756705840599,-480.0,0.00014229,2]
[382672947,1756705840607,-480.0,0.00014229,2]
[382672948,1756705840616,-480.0,0.00014229,2]
[382672949,1756705840625,-481.41751036,0.00014229,2]
[382672950,1756705840635,-480.0,0.00014229,2]
[382672951,1756705840645,-480.95839622,0.00014229,2]
[382672952,1756705840654,-688.69,0.00014229,2]
[382672953,1756705840664,-480.0,0.00014229,2]
[382672954,1756705840673,-481.93303261,0.00014229,2]
[382672956,1756705840683,-423.21170726,0.00014229,2]
[382672958,1756705840692,-480.0,0.00014229,2]
[382672960,1756705840701,-481.48598051,0.00014229,2]
[382672962,1756705840711,-481.97745173,0.00014229,2]
[382672964,1756705840720,-401.46772138,0.00014229,2]
[382672967,1756705840732,-480.0,0.00014229,2]
[382672969,1756705840745,-480.0,0.00014229,2]
[382672972,1756705840759,-480.0,0.00014229,2]
[382672974,1756705840772,-480.0,0.00014229,2]
[382672976,1756705840783,-480.0,0.00014229,2]
[382672978,1756705840795,-480.0,0.00014229,2]
[382672979,1756705840807,-480.0,0.00014229,2]
[382672980,1756705840821,-480.0,0.00014229,2]
[382672981,1756705840834,-480.0,0.00014229,2]
[382672982,1756705840847,-481.8779126,0.00014229,2]
[382672983,1756705840859,-1109.05,0.00014229,2]
[382672984,1756705840872,-481.47504995,0.00014229,2]
[382672985,1756705840885,-481.0453984,0.00014229,2]
[382672986,1756705840898,-808.33,0.00014229,2]
[382672987,1756705840910,-480.0,0.00014229,2]
[382672988,1756705840923,-480.0,0.00014229,2]
[382672990,1756705840934,-480.0,0.00014229,2]
[382672992,1756705840946,-480.0,0.00014229,2]
[382672995,1756705840958,-480.0,0.00014229,2]
[382672997,1756705840971,-743.86,0.00014229,2]
[382672999,1756705840983,-3283.55,0.00014229,2]
[382673001,1756705840993,-480.0,0.00014229,2]
[382673003,1756705841003,-461.92276964,0.00014229,2]
[382673006,1756705841015,-480.0,0.00014229,2]
[382673008,1756705841027,-480.0,0.00014229,2]
[382673010,1756705841039,-480.0,0.00014229,2]
[382673013,1756705841051,-480.0,0.00014229,2]
[382673015,1756705841064,-435.55549642,0.00014229,2]
[382673017,1756705841075,-480.0,0.00014229,2]
[382673020,1756705841087,-432.24097186,0.00014229,2]
[382673022,1756705841100,-480.0,0.00014229,2]
[382673024,1756705841113,-480.0,0.00014229,2]
[382673026,1756705841130,-499.7,0.00014229,2]
[382673028,1756705841141,-480.0,0.00014229,2]
[382673031,1756705841152,-480.0,0.00014229,2]
[382673033,1756705841164,-480.0,0.00014229,2]
[382673035,1756705841178,-359.62560657,0.00014229,2]
[382673038,1756705841192,-480.0,0.00014229,2]
[382673040,1756705841206,-480.0,0.00014229,2]
[382673042,1756705841221,-480.0,0.00014229,2]
[382673044,1756705841232,-449.11302619,0.00014229,2]
[382673046,1756705841243,-489.89570233,0.00014229,2]
[382673049,1756705841254,-480.0,0.00014229,2]
[382673051,1756705841266,-480.70557139,0.00014229,2]
[382673053,1756705841278,-480.0,0.00014229,2]
[382673055,1756705841288,-480.0,0.00014229,2]
[382673057,1756705841299,-480.0,0.00014229,2]
[382673060,1756705841310,-872.89,0.00014229,2]
[382673062,1756705841322,-480.0,0.00014229,2]
[382673064,1756705841333,-522.84,0.00014229,2]
[382673066,1756705841343,-1227.61,0.00014229,2]
[382673068,1756705841354,-480.0,0.00014229,2]
[382673070,1756705841365,-480.0,0.00014229,2]
[382673073,1756705841376,-480.0,0.00014229,2]
[382673075,1756705841388,-480.0,0.00014229,2]
[382673077,1756705841399,-629.74,0.00014229,2]
[382673079,1756705841412,-465.19537708,0.00014229,2]
[382673082,1756705841423,-480.0,0.00014229,2]
[382673084,1756705841434,-1198.1,0.00014229,2]
[382673086,1756705841445,-1139.62,0.00014229,2]
[382673088,1756705841455,-480.0,0.00014229,2]
[382673090,1756705841467,-281.92799011,0.00014229,2]
[382673092,1756705841477,-480.0,0.00014229,2]
[382673095,1756705841488,-480.0,0.00014229,2]
[382673097,1756705841499,-151.221061,0.00014229,2]
[382673099,1756705841509,-483.4,0.00014229,2]
[382673101,1756705841520,-151.0,0.00014229,2]
[382673103,1756705841531,-259.103624,0.00014229,2]
[382673105,1756705841542,-464.93071131,0.00014229,2]
[382673108,1756705841552,-318.9582976,0.00014229,2]
[382673110,1756705841564,-1072.0,0.00014229,2]
[382673112,1756705841574,-425.6348085,0.00014229,2]
[382673114,1756705841585,-163.40117913,0.00014229,2]
[382673116,1756705841596,-1101.02,0.00014229,2]
[382673119,1756705841607,-480.0,0.00014229,2]
[382673121,1756705841618,-480.0,0.00014229,2]
[382673123,1756705841629,-480.0,0.00014229,2]
[382673125,1756705841640,-451.85802132,0.00014229,2]
[382673127,1756705841651,-480.0,0.00014229,2]
[382673130,1756705841662,-481.9906898,0.00014229,2]
[382673132,1756705841673,-482.39673868,0.00014229,2]
[382673134,1756705841684,-480.0,0.00014229,2]
[382673136,1756705841695,-1135.83,0.00014229,2]
[382673138,1756705841705,-480.0,0.00014229,2]
[382673140,1756705841716,-480.0,0.00014229,2]
[382673143,1756705841728,-165.165242,0.00014229,2]
[382673145,1756705841738,-151.0,0.00014229,2]
[382673147,1756705841750,-151.0,0.00014229,2]
[382673149,1756705841761,-151.0,0.00014229,2]
[382673151,1756705841772,-480.0,0.00014229,2]
[382673154,1756705841783,-151.0,0.00014229,2]
[382673156,1756705841794,-480.0,0.00014229,2]
[382673158,1756705841805,-151.0,0.00014229,2]
[382673160,1756705841817,-480.0,0.00014229,2]
[382673162,1756705841827,-480.0,0.00014229,2]
[382673164,1756705841838,-480.0,0.00014229,2]
[382673167,1756705841850,-1286.2,0.00014229,2]
[382673169,1756705841861,-480.0,0.00014229,2]
[382673171,1756705841872,-151.0,0.00014229,2]
[382673173,1756705841884,-480.0,0.00014229,2]
[382673175,1756705841896,-169.731101,0.00014229,2]
[382673178,1756705841907,-212.79114993,0.00014229,2]
[382673180,1756705841917,-1055.18,0.00014229,2]
[382673182,1756705841930,-480.0,0.00014229,2]
[382673184,1756705841942,-480.0,0.00014229,2]
[382673186,1756705841952,-480.0,0.00014229,2]
[382673189,1756705841964,-278.677164,0.00014229,2]
[382673191,1756705841975,-445.63613953,0.00014229,2]
[382673193,1756705841986,-278.677164,0.00014229,2]
[382673195,1756705841996,-481.49191245,0.00014229,2]
[382673197,1756705842008,-278.677164,0.00014229,2]
[382673199,1756705842020,-278.677164,0.00014229,2]
[382673202,1756705842031,-1365.17,0.00014229,2]
[382673204,1756705842043,-151.0,0.00014229,2]
[382673206,1756705842053,-480.0,0.00014229,2]
[382673208,1756705842064,-151.0,0.00014229,2]
[382673210,1756705842075,-480.0,0.00014229,2]
[382673212,1756705842086,-151.0,0.00014229,2]
[382673215,1756705842097,-480.0,0.00014229,2]
[382673217,1756705842108,-151.0,0.00014229,2]
[382673219,1756705842119,-480.0,0.00014229,2]
[382673221,1756705842135,-480.0,0.00014229,2]
[382673223,1756705842146,-151.0,0.00014229,2]
[382673226,1756705842157,-480.0,0.00014229,2]
[382673228,1756705842169,-151.0,0.00014229,2]
[382673230,1756705842180,-151.0,0.00014229,2]
[382673232,1756705842190,-480.0,0.00014229,2]
[382673234,1756705842203,-151.0,0.00014229,2]
[382673237,1756705842214,-480.0,0.00014229,2]
[382673239,1756705842226,-480.0,0.00014229,2]
[382673241,1756705842237,-1066.5,0.00014229,2]
[382673243,1756705842251,-1066.5,0.00014229,2]
[382673245,1756705842263,-1066.5,0.00014229,2]
[382673247,1756705842279,-1066.5,0.00014229,2]
[382673249,1756705842290,-1066.5,0.00014229,2]
[382673251,1756705842301,-1066.56491375,0.00014229,2]
[382673254,1756705842311,-480.0,0.00014229,2]
[382673256,1756705842323,-480.0,0.00014229,2]
[382673258,1756705842334,-480.0,0.00014229,2]
[382673260,1756705842346,-480.0,0.00014229,2]
[382673263,1756705842358,-151.0,0.00014229,2]
[382673265,1756705842369,-151.0,0.00014229,2]
[382673267,1756705842380,-483.5667918,0.00014229,2]
[382673269,1756705842392,-1190.23,0.00014229,2]
[382673271,1756705842403,-480.0,0.00014229,2]
[382673273,1756705842414,-480.0,0.00014229,2]
[382673276,1756705842425,-480.0,0.00014229,2]
[382673278,1756705842437,-1891.18,0.00014229,2]
[382673280,1756705842448,-755.77,0.00014229,2]
[382673282,1756705842460,-160.604832,0.00014229,2]
[382673284,1756705842471,-160.604832,0.00014229,2]
[382673287,1756705842482,-480.0,0.00014229,2]
[382673289,1756705842493,-160.604832,0.00014229,2]
[382673291,1756705842505,-160.604832,0.00014229,2]
[382673293,1756705842516,-1212.9,0.00014229,2]
[382673296,1756705842529,-560.69,0.00014229,2]
[382673298,1756705842539,-160.604832,0.00014229,2]
[382673300,1756705842550,-160.604832,0.00014229,2]
[382673302,1756705842562,-160.604832,0.00014229,2]
[382673304,1756705842573,-160.604832,0.00014229,2]
[382673306,1756705842584,-151.0,0.00014229,2]
[382673309,1756705842595,-151.731145,0.00014229,2]
[382673311,1756705842606,-481.606264,0.00014229,2]
[382673313,1756705842617,-151.0,0.00014229,2]
[382673315,1756705842629,-599.63,0.00014229,2]
[382673317,1756705842639,-151.0,0.00014229,2]
[382673319,1756705842649,-480.0,0.00014229,2]
[382673321,1756705842658,-151.0,0.00014229,2]
[382673323,1756705842669,-151.0,0.00014229,2]
[382673325,1756705842679,-480.0,0.00014229,2]
[382673327,1756705842690,-480.0,0.00014229,2]
[382673330,1756705842700,-607.54,0.00014229,2]
[382673332,1756705842711,-480.0,0.00014229,2]
[382673362,1756705842903,-685.7,0.00014229,2]
[382673368,1756705842993,-151.0,0.00014229,2]
[382673370,1756705843006,-151.0,0.00014229,2]
[382673372,1756705843015,-1000.0,0.00014229,2]
[382673374,1756705843024,-546.46,0.00014229,2]
[382673376,1756705843034,-517.40648513,0.00014229,2]
[382673378,1756705843043,-151.0,0.00014229,2]
[382673380,1756705843053,-203.211685,0.00014229,2]
[382673382,1756705843062,-184.213476,0.00014229,2]
[382673384,1756705843073,-152.11578,0.00014229,2]
[382673386,1756705843082,-203.211685,0.00014229,2]
[382673388,1756705843091,-203.211685,0.00014229,2]
[382673390,1756705843101,-1337.47,0.00014229,2]
[382673392,1756705843111,-203.211685,0.00014229,2]
[382673394,1756705843123,-480.0,0.0001423,2]
[382673396,1756705843138,-700.77,0.0001423,2]
[382673398,1756705843147,-151.0,0.0001423,2]
[382673400,1756705843157,-151.0,0.0001423,2]
[382673402,1756705843167,-151.0,0.0001423,2]
[382673404,1756705843177,-151.0,0.0001423,2]
[382673406,1756705843187,-454.63399264,0.0001423,2]
[382673408,1756705843197,-284.300809,0.0001423,2]
[382673410,1756705843207,-480.0,0.0001423,2]
[382673412,1756705843216,-151.0,0.0001423,2]
[382673414,1756705843225,-151.0,0.0001423,2]
[382673416,1756705843235,-151.0,0.0001423,2]
[382673418,1756705843246,-151.0,0.0001423,2]
[382673420,1756705843255,-850.15,0.0001423,2]
[382673422,1756705843265,-151.0,0.0001423,2]
[382673424,1756705843276,-1149.69,0.0001423,2]
[382673426,1756705843286,-1225.66,0.0001423,2]
[382673428,1756705843296,-480.0,0.0001423,2]
[382673430,1756705843306,-151.0,0.0001423,2]
[382673432,1756705843318,-151.467687,0.0001423,2]
[382673434,1756705843329,-480.0,0.0001423,2]
[382673436,1756705843339,-151.0,0.0001423,2]
[382673439,1756705843350,-151.0,0.0001423,2]
[382673441,1756705843361,-151.0,0.0001423,2]
[382673443,1756705843371,-480.0,0.0001423,2]
[382673445,1756705843381,-480.0,0.0001423,2]
[382673447,1756705843391,-646.96,0.0001423,2]
[382673449,1756705843401,-633.6,0.0001423,2]
[382673451,1756705843411,-151.0,0.0001423,2]
[382673453,1756705843421,-480.0,0.0001423,2]
[382673455,1756705843431,-480.0,0.0001423,2]
[382673456,1756705843441,-151.0,0.0001423,2]
[382673459,1756705843451,-480.0,0.0001423,2]
[382673460,1756705843461,-152.007872,0.0001423,2]
[382673462,1756705843471,-151.0,0.0001423,2]
[382673465,1756705843481,-480.0,0.0001423,2]
[382673466,1756705843490,-912.11,0.0001423,2]
[382673468,1756705843499,-480.0,0.0001423,2]
[382673470,1756705843508,-480.0,0.0001423,2]
[382673472,1756705843518,-480.0,0.0001423,2]
[382673474,1756705843527,-480.0,0.0001423,2]
[382673477,1756705843538,-946.43,0.0001423,2]
[382673479,1756705843547,-480.0,0.0001423,2]
[382673481,1756705843557,-480.0,0.0001423,2]
[382673483,1756705843567,-480.0,0.0001423,2]
[382673485,1756705843576,-151.0,0.0001423,2]
[382673487,1756705843585,-151.0,0.0001423,2]
[382673489,1756705843595,-186.321703,0.0001423,2]
[382673491,1756705843604,-151.0,0.0001423,2]
[382673493,1756705843614,-151.0,0.0001423,2]
[382673495,1756705843623,-888.15,0.0001423,2]
[382673497,1756705843632,-155.679495,0.0001423,2]
[382673499,1756705843642,-1589.86,0.0001423,2]
[382673501,1756705843652,-278.677164,0.0001423,2]
[382673503,1756705843661,-278.677164,0.0001423,2]
[382673505,1756705843671,-278.677164,0.0001423,2]
[382673507,1756705843680,-278.677164,0.0001423,2]
[382673509,1756705843690,-480.0,0.0001423,2]
[382673511,1756705843700,-151.0,0.0001423,2]
[382673513,1756705843709,-151.0,0.0001423,2]
[382673515,1756705843718,-480.0,0.0001423,2]
[382673517,1756705843727,-151.0,0.0001423,2]
[382673519,1756705843737,-151.0,0.0001423,2]
[382673521,1756705843746,-151.0,0.0001423,2]
[382673523,1756705843755,-151.0,0.0001423,2]
[382673525,1756705843764,-151.0,0.0001423,2]
[382673527,1756705843773,-480.0,0.0001423,2]
[382673529,1756705843782,-480.0,0.0001423,2]
[382673531,1756705843791,-480.0,0.0001423,2]
[382673533,1756705843801,-480.0,0.0001423,2]
[382673535,1756705843810,-641.85,0.0001423,2]
[382673537,1756705843821,-480.0,0.0001423,2]
[382673539,1756705843830,-480.0,0.0001423,2]
[382673541,1756705843839,-480.0,0.0001423,2]
[382673543,1756705843848,-480.0,0.0001423,2]
[382673545,1756705843858,-592.0,0.0001423,2]
[382673547,1756705843868,-480.0,0.0001423,2]
[382673549,1756705843877,-480.0,0.0001423,2]
[382673551,1756705843886,-151.0,0.0001423,2]
[382673553,1756705843895,-151.0,0.0001423,2]
[382673555,1756705843905,-151.0,0.0001423,2]
[382673557,1756705843915,-500.54240405,0.0001423,2]
[382673559,1756705843925,-480.0,0.0001423,2]
[382673561,1756705843934,-151.0,0.0001423,2]
[382673563,1756705843943,-151.0,0.0001423,2]
[382673565,1756705843953,-151.0,0.0001423,2]
[382673567,1756705843962,-480.0,0.0001423,2]
[382673569,1756705843971,-151.0,0.0001423,2]
[382673571,1756705843980,-1000.0,0.0001423,2]
[382673573,1756705843991,-1000.0,0.0001423,2]
[382673575,1756705844001,-1000.0,0.0001423,2]
[382673577,1756705844010,-1000.0,0.0001423,2]
[382673579,1756705844020,-1000.0,0.0001423,2]
[382673581,1756705844029,-1000.0,0.0001423,2]
[382673583,1756705844039,-1000.0,0.0001423,2]
[382673585,1756705844048,-1000.0,0.0001423,2]
[382673587,1756705844057,-1000.0,0.0001423,2]
[382673589,1756705844067,-1000.0,0.0001423,2]
[382673591,1756705844075,-1000.0,0.0001423,2]
[382673593,1756705844084,-1000.0,0.0001423,2]
[382673595,1756705844093,-1000.0,0.0001423,2]
[382673597,1756705844102,-203.211685,0.0001423,2]
[382673599,1756705844111,-1000.0,0.0001423,2]
[382673601,1756705844122,-1000.0,0.0001423,2]
[382673603,1756705844135,-1000.0,0.0001423,2]
[382673605,1756705844144,-1000.0,0.0001423,2]
[382673607,1756705844153,-1000.0,0.0001423,2]
[382673609,1756705844163,-203.211685,0.0001423,2]
[382673611,1756705844173,-1000.0,0.0001423,2]
[382673613,1756705844182,-1000.0,0.0001423,2]
[382673615,1756705844191,-1000.0,0.0001423,2]
[382673617,1756705844202,-1000.0,0.0001423,2]
[382673619,1756705844211,-1000.0,0.0001423,2]
[382673621,1756705844221,-203.211685,0.0001423,2]
[382673623,1756705844231,-1000.0,0.0001423,2]
[382673625,1756705844240,-1000.0,0.0001423,2]
[382673627,1756705844249,-1000.0,0.0001423,2]
[382673629,1756705844259,-203.211685,0.0001423,2]
[382673631,1756705844269,-1000.0,0.0001423,2]
[382673633,1756705844278,-897.512098,0.0001423,2]
[382673635,1756705844287,-480.0,0.00014231,2]
[382673637,1756705844297,-480.0,0.00014231,2]
[382673639,1756705844306,-596.92,0.00014231,2]
[382673641,1756705844315,-480.0,0.00014231,2]
[382673643,1756705844325,-500.0,0.00014231,2]
[382673645,1756705844335,-480.0,0.00014231,2]
[382673647,1756705844344,-481.71332384,0.00014231,2]
[382673649,1756705844353,-480.0,0.00014231,2]
[382673651,1756705844363,-480.0,0.00014231,2]
[382673653,1756705844372,-480.0,0.00014231,2]
[382673655,1756705844381,-480.0,0.00014231,2]
[382673657,1756705844390,-480.0,0.00014231,2]
[382673659,1756705844399,-480.0,0.00014231,2]
[382673661,1756705844408,-480.0,0.00014231,2]
[382673663,1756705844418,-480.0,0.00014231,2]
[382673665,1756705844427,-480.0,0.00014231,2]
[382673667,1756705844437,-480.0,0.00014231,2]
[382673669,1756705844446,-480.0,0.00014231,2]
[382673671,1756705844455,-480.0,0.00014231,2]
[382673673,1756705844464,-480.0,0.00014231,2]
[382673675,1756705844474,-480.0,0.00014231,2]
[382673677,1756705844483,-480.0,0.00014231,2]
[382673679,1756705844493,-480.0,0.00014231,2]
[382673681,1756705844502,-861.77,0.00014231,2]
[382673683,1756705844511,-480.0,0.00014231,2]
[382673685,1756705844521,-988.7,0.00014231,2]
[382673687,1756705844531,-480.0,0.00014231,2]
[382673689,1756705844540,-480.0,0.00014231,2]
[382673691,1756705844549,-480.0,0.00014231,2]
[382673693,1756705844559,-509.77,0.00014231,2]
[382673695,1756705844569,-480.0,0.00014231,2]
[382673697,1756705844579,-969.64,0.00014231,2]
[382673699,1756705844588,-480.0,0.00014231,2]
[382673701,1756705844597,-480.0,0.00014231,2]
[382673703,1756705844607,-480.0,0.00014231,2]
[382673705,1756705844616,-480.0,0.00014231,2]
[382673706,1756705844626,-480.0,0.00014231,2]
[382673707,1756705844635,-480.0,0.00014231,2]
[382673708,1756705844644,-482.36,0.00014231,2]
[382673709,1756705844654,-480.0,0.00014231,2]
[382673710,1756705844663,-480.0,0.00014231,2]
[382673711,1756705844672,-621.31851868,0.00014231,2]
[382673712,1756705844681,-480.0,0.00014231,2]
[382673713,1756705844691,-480.0,0.00014231,2]
[382673714,1756705844700,-480.0,0.00014231,2]
[382673715,1756705844709,-480.0,0.00014231,2]
[382673716,1756705844718,-480.0,0.00014231,2]
[382673717,1756705844727,-480.0,0.00014231,2]
[382673718,1756705844737,-480.0,0.00014231,2]
[382673719,1756705844746,-480.0,0.00014231,2]
[382673720,1756705844755,-480.0,0.00014231,2]
[382673721,1756705844765,-480.0,0.00014231,2]
[382673722,1756705844774,-660.19,0.00014231,2]
[382673723,1756705844784,-764.66,0.00014231,2]
[382673724,1756705844794,-480.0,0.00014231,2]
[382673725,1756705844803,-783.34,0.00014231,2]
[382673726,1756705844812,-481.24031827,0.00014231,2]
[382673727,1756705844822,-481.19986601,0.00014231,2]
[382673728,1756705844832,-480.0,0.00014231,2]
[382673729,1756705844841,-480.0,0.00014231,2]
[382673730,1756705844850,-500.77,0.00014231,2]
[382673731,1756705844859,-480.0,0.00014231,2]
[382673732,1756705844869,-480.0,0.00014231,2]
[382673733,1756705844878,-481.5968499,0.00014231,2]
[382673734,1756705844896,-480.0,0.00014231,2]
[382673735,1756705844906,-480.0,0.00014231,2]
[382673737,1756705844915,-480.0,0.00014231,2]
[382673739,1756705844924,-480.0,0.00014231,2]
[382673741,1756705844933,-822.59,0.00014231,2]
[382673743,1756705844943,-480.0,0.00014231,2]
[382673744,1756705844952,-151.0,0.00014231,2]
[382673746,1756705844961,-151.0,0.00014231,2]
[382673749,1756705844971,-480.0,0.00014231,2]
[382673750,1756705844980,-570.92,0.00014231,2]
[382673752,1756705844990,-1104.84,0.00014231,2]
[382673754,1756705844999,-151.0,0.00014231,2]
[382673757,1756705845009,-151.0,0.00014231,2]
[382673759,1756705845019,-481.90123479,0.00014231,2]
[382673761,1756705845028,-480.0,0.00014231,2]
[382673763,1756705845038,-480.0,0.00014231,2]
[382673765,1756705845048,-480.0,0.00014231,2]
[382673767,1756705845057,-480.0,0.00014231,2]
[382673769,1756705845066,-480.0,0.00014231,2]
[382673771,1756705845075,-151.0,0.00014231,2]
[382673773,1756705845085,-480.0,0.00014231,2]
[382673775,1756705845094,-480.0,0.00014231,2]
[382673777,1756705845103,-296.769354,0.00014231,2]
[382673779,1756705845113,-480.0,0.00014231,2]
[382673781,1756705845123,-480.0,0.00014231,2]
[382673783,1756705845135,-151.0,0.00014231,2]
[382673784,1756705845145,-480.0,0.00014231,2]
[382673787,1756705845154,-480.0,0.00014231,2]
[382673789,1756705845164,-480.0,0.00014231,2]
[382673790,1756705845174,-151.0,0.00014231,2]
[382673792,1756705845183,-480.0,0.00014231,2]
[382673795,1756705845193,-480.0,0.00014231,2]
[382673797,1756705845204,-480.0,0.00014231,2]
[382673798,1756705845213,-151.0,0.00014231,2]
[382673800,1756705845222,-191.938504,0.00014231,2]
[382673802,1756705845232,-480.0,0.00014231,2]
[382673804,1756705845241,-151.0,0.00014231,2]
[382673806,1756705845251,-533.97,0.00014231,2]
[382673808,1756705845259,-151.0,0.00014231,2]
[382673810,1756705845269,-482.21072514,0.00014231,2]
[382673812,1756705845279,-151.0,0.00014231,2]
[382673814,1756705845288,-480.0,0.00014231,2]
[382673816,1756705845298,-480.0,0.00014231,2]
[382673818,1756705845307,-151.0,0.00014231,2]
[382673820,1756705845317,-151.0,0.00014231,2]
[382673822,1756705845327,-669.49,0.00014231,2]
[382673824,1756705845337,-151.0,0.00014231,2]
[382673826,1756705845347,-775.85,0.00014231,2]